bitfinex/quotes_BTCUSD_20220109
["timestamp","ask_amount","ask_price","bid_price","bid_amount"]
[1641737026713,0.00020817,41536.0,41530.0,0.4033359]
[1641737026912,0.00020817,41536.0,41530.0,0.5533359]
[1641737026913,0.00020814,41536.0,41530.0,0.5533359]
[1641737027713,0.00020814,41536.0,41530.0,0.6737239]
[1641737027912,0.00020825,41536.0,41530.0,0.6737239]
[1641737028412,0.00020825,41536.0,41530.0,0.6937239]
[1641737028854,0.29772407,41541.0,41530.0,0.6937239]
[1641737029056,0.00020825,41536.0,41530.0,0.6937239]
[1641737029255,0.00020825,41536.0,41530.0,0.6335279]
[1641737029455,0.00020825,41536.0,41530.0,0.6135279]
[1641737029853,0.00020825,41536.0,41530.0,0.61156188]
[1641737030354,0.00020825,41536.0,41530.0,0.63956188]
[1641737030755,0.00020825,41536.0,41531.0,0.51210188]
[1641737030954,0.00020825,41536.0,41531.0,0.57229793]
[1641737031155,0.00020814,41536.0,41531.0,0.57229793]
[1641737031557,0.00020814,41536.0,41531.0,0.829433]
[1641737032157,1.06053933,41542.0,41531.0,0.829433]
[1641737032357,0.00020814,41536.0,41531.0,1.057433]
[1641737032808,0.00020814,41536.0,41532.0,0.51210188]
[1641737033006,0.00020814,41536.0,41532.0,0.72229388]
[1641737033209,0.00020814,41536.0,41533.0,0.33055226]
[1641737033405,0.00020814,41536.0,41533.0,0.05]
[1641737034109,0.00020814,41536.0,41534.0,0.060192]
[1641737034406,0.66726524,41542.0,41534.0,0.060192]
[1641737034605,0.00020814,41537.0,41534.0,0.060192]
[1641737035105,0.00020814,41537.0,41533.0,0.31376871]
[1641737035507,0.66726524,41542.0,41533.0,0.28076871]
[1641737035707,0.00020814,41537.0,41533.0,0.28076871]
[1641737035910,0.00020814,41537.0,41534.0,0.060192]
[1641737036351,0.32280319,41535.0,41534.0,0.060192]
[1641737038351,0.32280319,41535.0,41534.0,0.141192]
[1641737039556,0.32280319,41535.0,41534.0,0.060192]
[1641737040310,0.32280319,41535.0,41534.0,0.140192]
[1641737041310,0.00020814,41537.0,41534.0,0.140192]
[1641737041509,0.00020814,41537.0,41534.0,0.38318349]
[1641737042306,0.00020814,41538.0,41534.0,0.47618349]
[1641737043308,1.0,41535.0,41534.0,0.47618349]
[1641737043507,1.0,41535.0,41534.0,0.38318349]
[1641737044156,1.0,41535.0,41534.0,0.62318349]
[1641737044358,1.0,41535.0,41534.0,0.69118349]
[1641737044959,1.0,41535.0,41534.0,0.79118349]
[1641737045161,1.0,41535.0,41534.0,0.89118349]
[1641737045359,0.51856,41535.0,41534.0,4.18637781]
[1641737045560,0.41576414,41535.0,41534.0,4.14325781]
[1641737045758,1.75008132,41543.0,41535.0,0.90604437]
[1641737045960,1.75008132,41543.0,41541.0,0.32611762]
[1641737046258,1.75008132,41543.0,41542.0,0.68062684]
[1641737046458,1.26873932,41543.0,41542.0,1.16658757]
[1641737046658,0.12303932,41543.0,41542.0,0.83247816]
[1641737047512,0.12303932,41543.0,41542.0,0.80639085]
[1641737047910,0.12303932,41543.0,41542.0,0.39651743]
[1641737048314,0.12303932,41543.0,41542.0,0.42651743]
[1641737049011,0.12303932,41543.0,41542.0,0.32651743]
[1641737049511,0.12303932,41543.0,41542.0,0.29651743]
[1641737050114,0.12303932,41543.0,41541.0,0.1805111]
[1641737050312,0.98140134,41542.0,41541.0,0.060172]
[1641737050511,0.98140134,41542.0,41539.0,0.40987342]
[1641737050512,1.08140133,41542.0,41539.0,0.40987342]
[1641737050711,0.00121879,41541.0,41539.0,0.40987342]
[1641737050914,0.00123273,41540.0,41537.0,0.51234177]
[1641737051111,0.09999999,41539.0,41536.0,0.40987342]
[1641737051365,0.87386928,41537.0,41536.0,0.40987342]
[1641737051567,1.33739728,41537.0,41534.0,0.24]
[1641737051767,0.387998,41536.0,41534.0,0.24]
[1641737052364,0.44821231,41536.0,41534.0,0.24]
[1641737052565,0.5602745,41535.0,41534.0,0.24]
[1641737052770,0.3102745,41535.0,41534.0,0.24]
[1641737053768,0.7602745,41535.0,41534.0,0.24]
[1641737054567,1.1482725,41535.0,41534.0,0.24]
[1641737055011,0.6982725,41535.0,41534.0,0.24]
[1641737055213,0.3102745,41535.0,41534.0,0.24]
[1641737055515,0.6982725,41535.0,41534.0,0.24]
[1641737056711,0.32394589,41529.0,41525.0,0.12042]
[1641737056912,0.32394589,41529.0,41525.0,0.180632]
[1641737057211,0.31316141,41531.0,41525.0,0.180632]
[1641737057612,0.31316141,41531.0,41523.0,1.014514]
[1641737057812,0.060223,41529.0,41526.0,0.0001782]
[1641737058012,0.28940499,41530.0,41526.0,0.0001782]
[1641737058413,0.006,41529.0,41526.0,0.0231782]
[1641737059066,0.31215924,41527.0,41526.0,0.0231782]
[1641737059467,0.006,41529.0,41526.0,0.0231782]
[1641737059667,0.28940499,41530.0,41526.0,0.0001782]
[1641737059865,0.28940499,41530.0,41523.0,0.9543]
[1641737059866,0.28940499,41530.0,41524.0,0.00017821]
[1641737060267,0.28940499,41530.0,41524.0,0.01717821]
[1641737060268,0.29740499,41530.0,41524.0,0.01717821]
[1641737060467,0.60865748,41530.0,41524.0,0.01717821]
[1641737060873,0.60865748,41530.0,41524.0,0.017]
[1641737061171,0.60865748,41530.0,41525.0,0.0001782]
[1641737061670,0.60065748,41530.0,41525.0,0.0001782]
[1641737062069,0.60065748,41530.0,41525.0,0.00017796]
[1641737062509,0.60065748,41530.0,41525.0,0.00217796]
[1641737063607,0.31125249,41530.0,41525.0,0.00217796]
[1641737064211,0.31125249,41530.0,41524.0,0.12043052]
[1641737064408,0.31125249,41530.0,41525.0,0.00017796]
[1641737066265,0.31316141,41531.0,41523.0,0.24]
[1641737066471,0.31316141,41531.0,41525.0,9.624e-05]
[1641737066866,0.31316141,41531.0,41525.0,0.06030721]
[1641737067470,0.31285075,41532.0,41525.0,0.06021097]
[1641737068066,0.31285075,41532.0,41525.0,0.12042297]
[1641737068672,0.00120259,41532.0,41525.0,0.45334162]
[1641737068868,0.51369807,41541.0,41526.0,0.33332804]
[1641737068869,0.71217335,41541.0,41526.0,0.33332804]
[1641737069069,0.39450398,41541.0,41527.0,0.060199]
[1641737069271,0.00122989,41541.0,41527.0,0.060199]
[1641737069671,0.28774723,41535.0,41527.0,0.060199]
[1641737070514,0.28896754,41535.0,41527.0,0.060199]
[1641737070915,0.0002156,41533.0,41527.0,0.060199]
[1641737071116,0.26330114,41528.0,41525.0,0.47005486]
[1641737071317,0.29079738,41527.0,41523.0,0.24018395]
[1641737071915,0.29079738,41527.0,41523.0,0.24]
[1641737072114,0.29079738,41527.0,41523.0,0.24018396]
[1641737072516,0.26330114,41528.0,41523.0,0.27618396]
[1641737073770,0.26330114,41528.0,41523.0,0.24018396]
[1641737073968,0.25830114,41528.0,41523.0,0.24018396]
[1641737075167,0.25830114,41528.0,41523.0,0.24]
[1641737075367,0.54868567,41528.0,41523.0,0.24017737]
[1641737075567,0.25830114,41528.0,41523.0,0.24017737]
[1641737075967,0.5493328,41528.0,41523.0,0.24017737]
[1641737076367,0.25830114,41528.0,41523.0,0.24517737]
[1641737076768,0.5474716,41528.0,41523.0,0.24517737]
[1641737076969,0.59162918,41528.0,41523.0,0.24517737]
[1641737077368,0.25830114,41528.0,41523.0,0.245]
[1641737077610,0.25830114,41528.0,41523.0,0.24017737]
[1641737079410,0.31302984,41529.0,41523.0,0.24017737]
[1641737079611,0.31302984,41529.0,41523.0,0.24]
[1641737079811,0.28781501,41528.0,41523.0,0.2401776]
[1641737080012,0.31302984,41529.0,41523.0,0.2401776]
[1641737080315,0.10129981,41529.0,41523.0,0.50147637]
[1641737080511,0.00129981,41529.0,41523.0,0.50147637]
[1641737080712,0.00129981,41529.0,41523.0,0.50129877]
[1641737080911,0.00129981,41529.0,41523.0,0.50147637]
[1641737081366,0.32444887,41528.0,41523.0,0.50147637]
[1641737081767,0.27429806,41529.0,41523.0,0.50129877]
[1641737082065,0.27429806,41529.0,41523.0,0.50147637]
[1641737082365,0.27429806,41529.0,41523.0,0.50247637]
[1641737082566,0.29133348,41530.0,41523.0,0.50247637]
[1641737082765,0.30009264,41529.0,41523.0,0.50247637]
[1641737082965,0.29133348,41530.0,41523.0,0.50247637]
[1641737083765,0.29133348,41530.0,41523.0,0.50147637]
[1641737084166,0.29133348,41530.0,41523.0,0.50147636]
[1641737085129,0.29133348,41530.0,41523.0,0.50129877]
[1641737085331,0.29133348,41530.0,41523.0,0.50147636]
[1641737087235,0.29524935,41531.0,41523.0,0.50147636]
[1641737087433,0.62036558,41531.0,41523.0,0.50147636]
[1641737087633,0.32311147,41531.0,41523.0,0.50147636]
[1641737087834,0.29514475,41530.0,41523.0,0.50147636]
[1641737088036,0.32311147,41531.0,41523.0,0.50147636]
[1641737088535,0.32311147,41531.0,41523.0,0.24017759]
[1641737088762,0.30017903,41530.0,41523.0,0.24017759]
[1641737088961,0.32311147,41531.0,41523.0,0.24017759]
[1641737089564,0.32311147,41531.0,41524.0,0.33339099]
[1641737089762,0.00120575,41532.0,41524.0,0.39360499]
[1641737089763,0.0014139,41532.0,41524.0,0.39360499]
[1641737089964,0.00020815,41532.0,41524.0,0.39360499]
[1641737090963,0.00020815,41532.0,41526.0,0.28698185]
[1641737091263,0.00020815,41532.0,41527.0,0.120422]
[1641737091864,0.00020816,41532.0,41527.0,0.060211]
[1641737092509,0.01120816,41532.0,41527.0,0.120423]
[1641737093610,0.00020816,41532.0,41527.0,0.18063437]
[1641737094410,0.01620816,41532.0,41527.0,0.18063437]
[1641737095011,0.016,41532.0,41527.0,0.18063437]
[1641737095213,0.01620816,41532.0,41527.0,0.16063437]
[1641737095412,0.01620816,41532.0,41527.0,0.53026386]
[1641737095612,0.01620816,41532.0,41527.0,0.47005186]
[1641737095812,0.00020816,41532.0,41527.0,0.40984086]
[1641737096011,0.00020816,41532.0,41526.0,0.40984086]
[1641737096463,0.00020816,41532.0,41527.0,0.002]
[1641737096866,0.28276908,41534.0,41527.0,0.002]
[1641737097762,0.27564526,41528.0,41525.0,0.71689593]
[1641737097963,0.27564526,41528.0,41525.0,0.40984086]
[1641737098566,0.27564526,41528.0,41525.0,0.41584086]
[1641737098864,0.27564526,41528.0,41525.0,0.006]
[1641737099065,0.00128178,41532.0,41525.0,0.006]
[1641737099465,0.39327409,41533.0,41525.0,0.006]
[1641737099667,0.39327409,41533.0,41526.0,9.627e-05]
[1641737099866,0.39327409,41531.0,41526.0,9.627e-05]
[1641737100314,0.39327409,41531.0,41526.0,0.06031127]
[1641737100715,0.39327409,41532.0,41528.0,0.34313319]
[1641737101113,1.39327409,41532.0,41528.0,0.34313319]
[1641737101315,0.387998,41531.0,41528.0,0.34313319]
[1641737101512,1.0,41532.0,41528.0,0.34313319]
[1641737103019,1.0,41532.0,41527.0,0.18081991]
[1641737103215,1.0,41532.0,41527.0,0.12060924]
[1641737103965,1.0,41532.0,41528.0,0.48919647]
[1641737104165,1.0,41532.0,41528.0,0.25357411]
[1641737104565,1.0,41532.0,41528.0,0.25557411]
[1641737104769,1.0,41532.0,41528.0,0.66541497]
[1641737105367,1.0,41532.0,41528.0,0.25557411]
[1641737105766,1.0,41532.0,41527.0,0.00017433]
[1641737105767,1.060791,41532.0,41527.0,0.00017433]
[1641737106166,0.29878993,41531.0,41526.0,0.40984086]
[1641737106365,1.060791,41532.0,41527.0,0.00017775]
[1641737106967,0.30542627,41531.0,41527.0,0.00017775]
[1641737107166,0.448221,41530.0,41527.0,0.00017775]
[1641737107369,0.387998,41530.0,41527.0,0.00017775]
[1641737108221,1.51428409,41532.0,41527.0,0.00017775]
[1641737108419,0.387998,41531.0,41527.0,0.00017775]
[1641737108620,1.45406509,41532.0,41526.0,0.00017775]
[1641737108819,1.45406509,41532.0,41528.0,0.30203017]
[1641737109021,1.060791,41532.0,41528.0,0.30203017]
[1641737110125,1.060791,41532.0,41527.0,0.0001781]
[1641737110520,1.076791,41532.0,41524.0,0.40984086]
[1641737110720,1.076791,41532.0,41527.0,0.00017804]
[1641737111265,1.076791,41532.0,41528.0,0.23973343]
[1641737111462,1.076791,41532.0,41528.0,0.29994543]
[1641737111661,1.060791,41532.0,41528.0,0.29994543]
[1641737112062,1.060791,41532.0,41524.0,0.40984086]
[1641737112261,1.060791,41532.0,41526.0,0.25291854]
[1641737112467,1.077791,41532.0,41526.0,0.31312776]
[1641737112664,1.077791,41532.0,41526.0,0.65668041]
[1641737112862,1.077791,41532.0,41527.0,0.060212]
[1641737113063,0.47273317,41532.0,41527.0,0.45280969]
[1641737113264,0.39327409,41534.0,41532.0,0.7]
[1641737113463,0.07506683,41534.0,41533.0,0.25120423]
[1641737113667,0.12303932,41543.0,41533.0,0.05120423]
[1641737114165,0.12303932,41543.0,41541.0,0.25329458]
[1641737114563,0.12803932,41543.0,41541.0,0.25329458]
[1641737115412,0.12803932,41543.0,41541.0,0.65222882]
[1641737115811,0.12303932,41543.0,41541.0,0.65222882]
[1641737116010,0.12303932,41543.0,41542.0,0.34021]
[1641737116214,0.12303932,41543.0,41541.0,0.31348258]
[1641737116510,0.12303932,41543.0,41542.0,0.014]
[1641737117711,0.14055521,41549.0,41542.0,0.014]
[1641737117917,0.14055521,41549.0,41541.0,0.060188]
[1641737118111,0.14055521,41549.0,41532.0,0.61605216]
[1641737118112,0.37774076,41548.0,41532.0,0.61605216]
[1641737118314,0.37774076,41548.0,41535.0,0.060201]
[1641737118512,0.37774076,41548.0,41541.0,0.005]
[1641737118770,0.387998,41547.0,41541.0,0.005]
[1641737118965,0.31723581,41544.0,41541.0,0.005]
[1641737119167,0.62378029,41544.0,41541.0,0.005]
[1641737119865,0.387998,41543.0,41533.0,0.430001]
[1641737120066,0.62378029,41544.0,41533.0,0.430001]
[1641737120469,0.004,41543.0,41533.0,0.468001]
[1641737120666,0.004,41543.0,41534.0,0.33068712]
[1641737121666,0.004,41543.0,41534.0,0.39088712]
[1641737121868,0.31723581,41544.0,41534.0,0.39107157]
[1641737122070,0.63113309,41544.0,41534.0,0.39107157]
[1641737122368,0.63113309,41544.0,41534.0,0.63107157]
[1641737122610,0.65213309,41544.0,41534.0,0.63607157]
[1641737123211,0.65213309,41544.0,41534.0,0.30538445]
[1641737123811,0.63113309,41544.0,41534.0,0.3002]
[1641737124011,0.63113309,41544.0,41534.0,0.30038806]
[1641737124213,0.69133793,41544.0,41536.0,0.27061726]
[1641737124413,0.63113309,41544.0,41536.0,0.27061726]
[1641737124615,0.36123581,41544.0,41537.0,0.120396]
[1641737124913,0.36123581,41544.0,41537.0,0.060198]
[1641737125716,0.044,41544.0,41537.0,0.120396]
[1641737126014,0.14055521,41549.0,41538.0,0.00129806]
[1641737126260,0.14055521,41549.0,41538.0,0.06148606]
[1641737126261,0.00020777,41547.0,41538.0,0.06148606]
[1641737126663,0.014,41544.0,41543.0,0.33168839]
[1641737126861,0.014,41544.0,41543.0,0.58378528]
[1641737127363,0.014,41544.0,41543.0,0.64396828]
[1641737127562,0.14055521,41549.0,41543.0,0.64396828]
[1641737128563,0.14055521,41549.0,41543.0,0.64796828]
[1641737128763,0.14055521,41549.0,41544.0,0.4123653]
[1641737129165,0.14055521,41549.0,41548.0,0.00121101]
[1641737129465,0.14055521,41549.0,41548.0,0.06138301]
[1641737130119,0.14055521,41549.0,41548.0,0.36138301]
[1641737130621,0.14055521,41549.0,41548.0,0.07238301]
[1641737130828,0.004,41559.0,41554.0,0.060167]
[1641737131019,0.004,41559.0,41553.0,0.06141259]
[1641737131820,0.00021554,41558.0,41553.0,0.00124559]
[1641737132220,0.00021554,41558.0,41552.0,0.33778616]
[1641737132419,0.00021554,41558.0,41552.0,0.39796116]
[1641737132623,0.004,41559.0,41553.0,0.06217236]
[1641737132822,0.00021554,41557.0,41553.0,0.06217236]
[1641737133021,0.00021554,41557.0,41553.0,0.30217236]
[1641737133623,0.00021554,41557.0,41554.0,0.120338]
[1641737134866,0.004,41559.0,41554.0,0.12157614]
[1641737135067,0.00021196,41558.0,41554.0,0.12157614]
[1641737136072,0.00020788,41558.0,41554.0,0.12157614]
[1641737136670,0.00020788,41558.0,41554.0,0.12657614]
[1641737137071,0.004,41559.0,41554.0,0.12657614]
[1641737137276,0.00020788,41558.0,41557.0,0.00126187]
[1641737137527,0.00020788,41558.0,41557.0,0.06141587]
[1641737137727,0.004,41559.0,41558.0,0.4]
[1641737137927,0.004,41559.0,41557.0,0.35191587]
[1641737138127,0.004,41559.0,41558.0,0.26700396]
[1641737138330,0.00020806,41569.0,41566.0,0.34338951]
[1641737138732,0.00020806,41569.0,41567.0,0.12029]
[1641737138930,0.00020806,41569.0,41558.0,2.17838063]
[1641737139129,0.00020806,41569.0,41558.0,2.17966662]
[1641737139330,0.30959021,41568.0,41561.0,0.06015747]
[1641737139629,0.56401846,41568.0,41561.0,0.06015747]
[1641737139831,0.56401846,41568.0,41561.0,0.18046947]
[1641737140030,0.30959021,41568.0,41561.0,0.18046947]
[1641737140631,0.00021551,41567.0,41561.0,0.003]
[1641737141032,0.25552568,41567.0,41561.0,0.003]
[1641737141266,0.25552568,41567.0,41561.0,0.063161]
[1641737141767,0.00021552,41566.0,41559.0,0.120321]
[1641737142565,0.00021552,41566.0,41560.0,0.060163]
[1641737142765,0.00021552,41565.0,41560.0,0.060163]
[1641737143265,0.00021552,41565.0,41559.0,0.006]
[1641737143769,0.25531017,41567.0,41557.0,0.2905]
[1641737143965,0.00021193,41564.0,41557.0,0.2905]
[1641737144165,0.00021193,41564.0,41559.0,0.060168]
[1641737145012,0.00020786,41564.0,41560.0,0.060164]
[1641737145218,0.00020786,41564.0,41561.0,0.060164]
[1641737146013,0.2455221,41567.0,41561.0,0.120326]
[1641737146416,0.30959021,41568.0,41562.0,0.060162]
[1641737147216,0.30959021,41568.0,41561.0,0.060162]
[1641737147416,0.32757264,41565.0,41560.0,0.060165]
[1641737147817,0.32757264,41565.0,41555.0,0.7534]
[1641737148016,0.51674264,41565.0,41553.0,0.24]
[1641737148416,0.57691764,41565.0,41558.0,0.00010005]
[1641737148616,0.387998,41564.0,41558.0,0.00010005]
[1641737148867,0.06140073,41567.0,41558.0,0.00010005]
[1641737149069,0.00122913,41567.0,41558.0,0.00010005]
[1641737149464,0.00122913,41567.0,41559.0,0.00018574]
[1641737149667,0.00021551,41566.0,41559.0,0.00018574]
[1641737149865,0.00021551,41566.0,41559.0,0.12051974]
[1641737150066,0.00021551,41566.0,41559.0,0.00018574]
[1641737150566,0.01521551,41566.0,41559.0,0.00118574]
[1641737151570,0.015,41566.0,41559.0,0.00118574]
[1641737151767,0.01521551,41566.0,41559.0,0.00118574]
[1641737151967,0.00021551,41566.0,41559.0,0.00018574]
[1641737152614,0.35013136,41567.0,41559.0,0.001]
[1641737152814,0.00021191,41566.0,41559.0,0.06134155]
[1641737153013,0.00021191,41566.0,41559.0,0.00117555]
[1641737153913,0.00020784,41566.0,41559.0,0.00017899]
[1641737154118,0.387998,41565.0,41559.0,0.00017899]
[1641737154916,0.387998,41565.0,41555.0,0.120333]
[1641737155116,0.015,41566.0,41555.0,0.180501]
[1641737155919,0.34890223,41567.0,41555.0,0.180501]
[1641737156119,0.54890223,41567.0,41555.0,0.180501]
[1641737156369,0.30430958,41561.0,41555.0,0.180501]
[1641737157169,0.30430958,41561.0,41556.0,0.00010018]
[1641737157369,0.30430958,41561.0,41556.0,0.12043899]
[1641737158172,0.30430958,41561.0,41556.0,0.06017]
[1641737158371,0.30430958,41561.0,41556.0,0.06035073]
[1641737158571,0.32830958,41561.0,41556.0,0.06035073]
[1641737159073,0.32830958,41561.0,41556.0,0.06035173]
[1641737159275,0.32830958,41561.0,41556.0,0.060171]
[1641737159473,0.32830958,41561.0,41556.0,0.06035173]
[1641737160017,0.30430958,41561.0,41556.0,0.06035173]
[1641737160419,0.30430958,41561.0,41556.0,0.060171]
[1641737160619,0.30430958,41561.0,41556.0,0.12052173]
[1641737160821,0.34890223,41567.0,41557.0,0.06017]
[1641737161223,0.00148732,41568.0,41558.0,0.33346543]
[1641737161421,0.00148732,41568.0,41557.0,0.120329]
[1641737161620,0.00127377,41568.0,41560.0,0.0001807]
[1641737161824,0.00148733,41568.0,41561.0,0.060163]
[1641737162022,0.00021356,41568.0,41561.0,0.060163]
[1641737162221,0.00021356,41568.0,41562.0,0.27481553]
[1641737162822,0.00021129,41568.0,41563.0,0.06035149]
[1641737163022,0.00021129,41568.0,41563.0,0.12051149]
[1641737164570,0.00021129,41568.0,41563.0,0.24283031]
[1641737164769,0.00020806,41569.0,41563.0,0.24264082]
[1641737164969,0.00021129,41568.0,41563.0,0.24283031]
[1641737165970,0.00021129,41568.0,41563.0,0.24082009]
[1641737165971,0.00020773,41568.0,41563.0,0.24082009]
[1641737166272,0.00020806,41569.0,41567.0,0.06015232]
[1641737166469,0.00020806,41569.0,41568.0,0.060155]
[1641737166870,0.00020806,41569.0,41563.0,0.00317927]
[1641737167174,0.29014065,41569.0,41563.0,0.003]
[1641737167370,0.00020806,41569.0,41563.0,0.12331798]
[1641737167819,0.00020806,41569.0,41563.0,0.12031798]
[1641737168622,0.02820806,41569.0,41564.0,0.060158]
[1641737169519,0.02820806,41569.0,41561.0,0.060163]
[1641737169722,0.02820806,41569.0,41561.0,0.120326]
[1641737169919,0.00020806,41569.0,41562.0,0.060163]
[1641737170120,0.00020806,41569.0,41559.0,0.120323]
[1641737170519,0.25998432,41564.0,41563.0,0.00019009]
[1641737170719,0.614909,41564.0,41563.0,0.00019009]
[1641737171563,0.614909,41564.0,41561.0,0.00019029]
[1641737171763,0.25998432,41564.0,41561.0,0.00019029]
[1641737171962,0.50314024,41568.0,41561.0,0.00019029]
[1641737172163,0.50314024,41568.0,41561.0,0.06035529]
[1641737172566,0.50314024,41568.0,41561.0,0.060165]
[1641737172763,0.50314024,41568.0,41563.0,0.32131325]
[1641737172764,0.51814024,41568.0,41563.0,0.32131325]
[1641737173164,0.51814024,41568.0,41563.0,0.5017714]
[1641737173364,0.015,41568.0,41563.0,0.5017714]
[1641737173765,0.015,41568.0,41563.0,0.50196167]
[1641737173964,0.015,41568.0,41564.0,0.060154]
[1641737174564,0.01,41568.0,41564.0,0.066154]
[1641737175025,0.01,41568.0,41564.0,0.06633367]
[1641737175422,0.0056,41568.0,41564.0,0.06633367]
[1641737175823,0.0056,41568.0,41564.0,0.066154]
[1641737176023,0.00020806,41569.0,41567.0,0.120284]
[1641737176422,0.00020806,41569.0,41567.0,0.220284]
[1641737176622,0.00020806,41569.0,41567.0,0.29142628]
[1641737176823,0.00020806,41569.0,41568.0,0.31877522]
[1641737178626,0.00020806,41569.0,41568.0,0.33077522]
[1641737179271,0.00020806,41569.0,41568.0,0.012]
[1641737179871,0.00020806,41569.0,41565.0,0.00018019]
[1641737180273,0.00020806,41569.0,41561.0,0.24]
[1641737180571,0.00020806,41569.0,41565.0,0.0001802]
[1641737180772,0.00020806,41569.0,41567.0,0.12029949]
[1641737180971,0.00020806,41569.0,41567.0,0.18044749]
[1641737181674,0.00020806,41569.0,41567.0,0.54158204]
[1641737181871,0.50784157,41574.0,41571.0,0.06014502]
[1641737182072,0.50784157,41574.0,41568.0,0.120291]
[1641737182514,0.50784157,41574.0,41568.0,0.41247527]
[1641737182714,0.52184157,41574.0,41568.0,0.41647527]
[1641737183415,0.52184157,41574.0,41571.0,0.060147]
[1641737183715,0.52184157,41574.0,41571.0,0.060146]
[1641737183916,0.50284157,41574.0,41571.0,0.060146]
[1641737184119,0.50451406,41575.0,41571.0,0.060146]
[1641737184416,0.50284157,41575.0,41571.0,0.060146]
[1641737184717,0.014,41575.0,41572.0,0.060142]
[1641737184916,0.01421549,41575.0,41572.0,0.060142]
[1641737185520,0.01421549,41575.0,41574.0,0.15]
[1641737185718,0.01421549,41575.0,41574.0,0.67717175]
[1641737185918,0.01421549,41575.0,41574.0,0.52843796]
[1641737185919,0.014,41575.0,41574.0,0.52843796]
[1641737186118,0.00021549,41576.0,41574.0,0.52843796]
[1641737186367,0.00021549,41576.0,41575.0,0.91311964]
[1641737186763,0.03421549,41576.0,41575.0,0.91311964]
[1641737186966,0.034,41576.0,41575.0,0.91311964]
[1641737187864,0.034,41576.0,41575.0,0.6575261]
[1641737188065,0.00021186,41578.0,41576.0,0.060129]
[1641737188765,0.00621186,41578.0,41576.0,0.078129]
[1641737188964,0.00621186,41578.0,41576.0,0.2585198]
[1641737189163,0.006,41578.0,41576.0,0.2585198]
[1641737190018,0.00420779,41579.0,41578.0,0.510125]
[1641737190220,0.004,41579.0,41578.0,0.89244003]
[1641737190420,0.00420779,41579.0,41578.0,0.89244003]
[1641737190622,0.00420779,41579.0,41578.0,1.11344003]
[1641737191321,0.004,41579.0,41578.0,1.11344003]
[1641737191919,0.004,41579.0,41578.0,1.09244003]
[1641737192523,0.004,41579.0,41578.0,0.64244003]
[1641737192720,0.004,41579.0,41578.0,0.083125]
[1641737193120,0.004,41579.0,41578.0,0.023]
[1641737193787,0.27409893,41579.0,41578.0,0.023]
[1641737194188,0.27409893,41579.0,41578.0,0.24]
[1641737194386,0.004,41579.0,41578.0,0.24]
[1641737194788,0.004,41579.0,41578.0,0.244]
[1641737194789,0.016,41579.0,41578.0,0.244]
[1641737195890,0.004,41579.0,41578.0,0.24]
[1641737196690,0.009,41579.0,41578.0,0.26]
[1641737197617,0.33461314,41580.0,41578.0,0.26]
[1641737197921,0.33461314,41580.0,41578.0,0.24]
[1641737198716,0.34561314,41580.0,41578.0,0.244]
[1641737200016,0.33461314,41580.0,41578.0,0.23936972]
[1641737200319,0.0002079,41581.0,41578.0,0.23936972]
[1641737200716,0.009,41580.0,41578.0,0.24436972]
[1641737201373,0.32669227,41580.0,41578.0,0.24436972]
[1641737201974,0.31769227,41580.0,41578.0,0.23936972]
[1641737202773,0.33469227,41580.0,41578.0,0.23936972]
[1641737203973,0.31769227,41580.0,41578.0,0.35964272]
[1641737204474,0.00020799,41581.0,41578.0,0.35964272]
[1641737204773,0.013,41580.0,41578.0,0.35964072]
[1641737205620,0.013,41580.0,41579.0,0.060135]
[1641737206119,0.00020798,41581.0,41579.0,0.180401]
[1641737206421,0.00020798,41581.0,41579.0,0.24053388]
[1641737206719,0.022,41581.0,41579.0,0.24053388]
[1641737207819,0.01,41582.0,41579.0,0.24053388]
[1641737208022,0.01020798,41582.0,41580.0,0.060133]
[1641737208419,0.01020798,41582.0,41580.0,0.120265]
[1641737208869,0.02020798,41582.0,41580.0,0.132265]
[1641737209067,0.02,41582.0,41580.0,0.132265]
[1641737209469,0.02,41582.0,41580.0,0.13162506]
[1641737209665,0.02,41582.0,41580.0,0.19175289]
[1641737210066,0.01,41582.0,41580.0,0.17975289]
[1641737211267,0.01,41582.0,41578.0,0.29950672]
[1641737211465,0.30834739,41582.0,41578.0,0.29950672]
[1641737211668,0.30638539,41582.0,41578.0,0.29950672]
[1641737212269,0.3042182,41581.0,41578.0,0.23936972]
[1641737212718,0.3042182,41581.0,41578.0,0.25436972]
[1641737213517,0.01820798,41582.0,41579.0,0.060134]
[1641737213718,0.01820798,41582.0,41579.0,0.18040119]
[1641737213917,0.01820798,41582.0,41579.0,0.12026719]
[1641737214117,0.01020798,41582.0,41579.0,0.12026719]
[1641737214519,0.01,41582.0,41579.0,0.12026719]
[1641737214719,0.023,41582.0,41579.0,0.12026719]
[1641737215119,0.023,41582.0,41580.0,0.08765263]
[1641737215319,0.31847221,41582.0,41580.0,0.02752063]
[1641737215520,0.31847221,41582.0,41578.0,0.23936972]
[1641737215920,0.30547221,41582.0,41578.0,0.23936972]
[1641737216376,0.01,41582.0,41578.0,0.35964272]
[1641737216572,0.01,41582.0,41578.0,0.29950572]
[1641737216772,0.027,41582.0,41578.0,0.29950572]
[1641737216975,0.02720798,41582.0,41578.0,0.29950572]
[1641737217274,0.02720798,41582.0,41580.0,0.060134]
[1641737217676,0.02720798,41582.0,41578.0,0.29950572]
[1641737217872,0.027,41582.0,41578.0,0.29950572]
[1641737218074,0.01,41582.0,41578.0,0.29950572]
[1641737218272,0.01,41582.0,41578.0,0.18800041]
[1641737218972,0.01020798,41582.0,41578.0,0.18800041]
[1641737219173,0.01020798,41582.0,41578.0,0.24813741]
[1641737219576,0.51927083,41582.0,41580.0,0.060135]
[1641737220043,0.51906285,41582.0,41580.0,0.060135]
[1641737220845,0.51906285,41582.0,41579.0,0.120271]
[1641737221046,0.51906285,41582.0,41579.0,0.060134]
[1641737221244,0.01,41582.0,41579.0,0.060134]
[1641737221446,0.01,41582.0,41579.0,0.120269]
[1641737221644,0.51906285,41582.0,41579.0,0.120269]
[1641737222046,0.51906285,41582.0,41580.0,0.060135]
[1641737222749,1.51906285,41582.0,41580.0,0.060135]
[1641737225270,0.50906285,41581.0,41580.0,0.060135]
[1641737225871,0.50906285,41581.0,41578.0,0.18800041]
[1641737226771,0.50906285,41581.0,41578.0,0.24813534]
[1641737226971,0.50906285,41581.0,41579.0,0.180405]
[1641737227171,0.50886285,41581.0,41579.0,0.180405]
[1641737227371,1.01020798,41582.0,41579.0,0.180405]
[1641737227623,1.01020798,41582.0,41579.0,0.12027]